[Event "5th Thessaloniki SKG Open-B 2024"]
[Site "Thessaloniki"]
[Date "2024.08.13"]
[Round "9.4"]
[White "Ioannidis, Konstantinos I"]
[Black "Vakalopoulos, Hristos"]
[Result "1/2-1/2"]
[ECO "A49"]
[WhiteElo "1683"]
[BlackElo "1866"]
[Annotator "NA RC"]
[PlyCount "88"]
[EventDate "2024.08.05"]
[EventType "swiss"]
[EventCountry "GRE"]
[SourceTitle "playchess.com"]
[Source "ChessBase"]
[SourceQuality "1"]
[TimeControl "40/5400+30:1800+30"]

1. Nf3 {[%emt 0:00:07]} Nf6 {[%emt 0:00:07]} 2. b3 {[%emt 0:00:05]} g6 {[%emt 0:00:07]} 3. Bb2 {[%emt 0:00:03]} Bg7 {[%emt 0:00:09]} 4. g3 {[%emt 0:00:07]} O-O {[%emt 0:00:10]} 5. Bg2 {[%emt 0:00:08]} d6 {[%emt 0:00:05]} 6. d4 {[%emt 0:00:05]} a5 {[%emt 0:05:40]} 7. a4 {[%emt 0:02:37]} Na6 {[%emt 0:03:33]} 8. O-O {[%emt 0:00:59]} c6 {[%emt 0:01:55]} 9. e3 {[%emt 0:01:11]} d5 {[%emt 0:05:26]} 10. Nc3 {[%emt 0:03:21]} Bf5 {[%emt 0:22:21]} 11. h3 $11 {[%emt 0:08:48]} Nc7 {[%emt 0:06:26]} 12. Qe2 {[%emt 0:02:32]} Nce8 {[%emt 0:03:36]} 13. Ne1 {[%emt 0:12:24]} Nd6 {[%emt 0:02:21]} 14. f3 {[%emt 0:07:50]} Be6 {[%emt 0:08:09]} 15. Nd3 {[%emt 0:03:06]} Nh5 {[%emt 0:12:45]} 16. Qf2 {[%emt 0:55:07]} Qb8 {[%emt 0:12:59]} 17. g4 {[%emt 0:00:00]} Nf6 {[%emt 0:00:19]} 18. Rae1 {[%emt 0:00:00]} h5 {[%emt 0:02:09]} 19. Nf4 {[%emt 0:00:00]} hxg4 {[%emt 0:01:41]} 20. hxg4 {[%emt 0:00:00]} Nh7 {[%emt 0:03:41]} 21. Nce2 {[%emt 0:00:00]} Bd7 {[%emt 0:00:02]} 22. Nd3 {[%emt 0:00:00]} Ng5 {[%emt 0:01:32]} 23. Ne5 {[%emt 0:00:00]} Qc7 {[%emt 0:01:19]} 24. Bc1 {[%emt 0:00:00]} Bf6 {[%emt 0:00:23]} 25. Nf4 {[%emt 0:00:00]} Kg7 {[%emt 0:00:20]} 26. Nfd3 {[%emt 0:00:00]} Rad8 {[%emt 0:01:01]} 27. Nxd7 {[%emt 0:00:00]} Qxd7 {[%emt 0:00:07]} 28. Nc5 {[%emt 0:00:00]} Qc8 {[%emt 0:00:33]} 29. f4 {[%emt 0:00:00]} Qxg4 {[%emt 0:03:47]} 30. fxg5 {[%emt 0:00:00]} Bxg5 {[%emt 0:00:10]} 31. Qf3 {[%emt 0:00:00]} Qh4 {[%emt 0:00:14]} 32. Qh3 {[%emt 0:00:00]} Qxh3 {[%emt 0:00:50]} 33. Bxh3 {[%emt 0:00:00]} b6 {[%emt 0:00:14]} 34. Nd3 {[%emt 0:00:00]} Ne4 {[%emt 0:00:30]} 35. Ne5 {[%emt 0:00:00]} f6 {[%emt 0:00:36]} 36. Nxc6 {[%emt 0:00:00]} Rd6 {[%emt 0:00:25]} 37. Nxe7 {[%emt 0:00:00]} Re8 {[%emt 0:01:37]} 38. Ba3 {[%emt 0:00:00]} Rxe7 {[%emt 0:00:19]} 39. Bxd6 {[%emt 0:00:00]} Nxd6 {[%emt 0:00:03]} 40. Rf3 {[%emt 0:00:00]} Rc7 {[%emt 0:00:00]} 41. Re2 {[%emt 0:00:00]} f5 {[%emt 0:08:38]} 42. Bf1 {[%emt 0:01:48]} Rc3 {[%emt 0:01:26]} 43. Bg2 {[%emt 0:03:46]} Ne4 {[%emt 0:03:02]} 44. Rh3 {[%emt 0:00:37]} Nf6 {[%emt 0:01:01]} 1/2-1/2

[Event "5th Thessaloniki SKG Open-B 2024"]
[Site "Thessaloniki"]
[Date "2024.08.13"]
[Round "9.5"]
[White "Misios, Konstantinos"]
[Black "Nakitsas, Stergios"]
[Result "0-1"]
[ECO "C05"]
[WhiteElo "1682"]
[BlackElo "1759"]
[Annotator "NA RC"]
[PlyCount "72"]
[EventDate "2024.08.05"]
[EventType "swiss"]
[EventCountry "GRE"]
[SourceTitle "playchess.com"]
[Source "ChessBase"]
[SourceQuality "1"]
[TimeControl "40/5400+30:1800+30"]

1. e4 {[%emt 0:00:03]} e6 {[%emt 0:00:07]} 2. d4 {[%emt 0:00:03]} d5 {[%emt 0:00:06]} 3. Nd2 {[%emt 0:00:04]} Nf6 {[%emt 0:00:06]} 4. e5 {[%emt 0:00:06]} Nfd7 {[%emt 0:00:04]} 5. c3 {[%emt 0:00:01]} c5 {[%emt 0:00:21]} 6. f4 {[%emt 0:00:04]} Nc6 {[%emt 0:01:12]} 7. Ndf3 {[%emt 0:00:26]} Qb6 {[%emt 0:01:33]} 8. a3 {[%emt 1:33:43]} a5 {[%emt 0:03:47]} 9. b3 {[%emt 0:00:00]} f6 {[%emt 0:01:43]} 10. h4 {[%emt 0:00:00]} Be7 {[%emt 0:02:35]} 11. Nh3 {[%emt 0:00:00]} O-O {[%emt 0:02:18]} 12. Bd3 {[%emt 0:00:00]} Qd8 {[%emt 0:06:00]} 13. Qc2 {[%emt 0:00:00]} f5 {[%emt 0:02:23]} 14. g3 {[%emt 0:00:00]} cxd4 {[%emt 0:02:35]} 15. cxd4 {[%emt 0:00:00]} Nb6 {[%emt 0:01:29]} 16. Be3 {[%emt 0:00:00]} Bd7 {[%emt 0:02:22]} 17. Bf2 {[%emt 0:00:00]} Rc8 {[%emt 0:05:21]} 18. Qb1 {[%emt 0:00:00]} a4 {[%emt 0:01:56]} 19. g4 {[%emt 0:00:00]} Na5 {[%emt 0:03:15]} 20. gxf5 {[%emt 0:00:00]} Nxb3 {[%emt 0:00:18]} 21. Ke2 {[%emt 0:00:00]} exf5 {[%emt 0:00:55]} 22. Ra2 {[%emt 0:00:00]} Qe8 {[%emt 0:05:10]} 23. Nhg5 {[%emt 0:00:00]} Bxg5 {[%emt 0:05:47]} 24. hxg5 {[%emt 0:00:00]} Bb5 {[%emt 0:00:08]} 25. Be3 {[%emt 0:00:00]} Rc3 {[%emt 0:06:47]} 26. Bxb5 {[%emt 0:00:00]} Qxb5+ {[%emt 0:00:07]} 27. Kf2 {[%emt 0:00:00]} Nc4 {[%emt 0:06:00]} 28. Bc1 {[%emt 0:00:00]} Rxf3+ {[%emt 0:00:42]} 29. Kg2 {[%emt 0:00:00]} Ne3+ {[%emt 0:00:45]} 30. Bxe3 {[%emt 0:00:00]} Rxe3 {[%emt 0:00:03]} 31. Rxh7 {[%emt 0:00:00]} Re2+ {[%emt 0:01:51]} 32. Kg3 {[%emt 0:00:00]} Kxh7 {[%emt 0:00:17]} 33. Qh1+ {[%emt 0:00:00]} Kg6 {[%emt 0:00:31]} 34. Rxe2 {[%emt 0:00:00]} Qxe2 {[%emt 0:00:06]} 35. Qxd5 {[%emt 0:00:00]} Qe3+ {[%emt 0:00:12]} 36. Kg2 {[%emt 0:00:00]} Qe4+ {[%emt 0:00:05]} 0-1

[Event "5th Thessaloniki SKG Open-B 2024"]
[Site "Thessaloniki"]
[Date "2024.08.13"]
[Round "9.6"]
[White "Bulut, Kemal"]
[Black "Gioras, Ioannis"]
[Result "1-0"]
[ECO "B45"]
[WhiteElo "1664"]
[BlackElo "1726"]
[Annotator "NA RC"]
[PlyCount "69"]
[EventDate "2024.08.05"]
[EventType "swiss"]
[EventCountry "GRE"]
[SourceTitle "playchess.com"]
[Source "ChessBase"]
[SourceQuality "1"]
[TimeControl "40/5400+30:1800+30"]

1. e4 {[%emt 0:02:56]} c5 {[%emt 0:00:29]} 2. Nf3 {[%emt 0:00:13]} e6 {[%emt 0:00:35]} 3. d4 {[%emt 0:00:21]} cxd4 {[%emt 0:00:02]} 4. Nxd4 {[%emt 0:00:26]} Nf6 {[%emt 0:00:03]} 5. Nc3 {[%emt 0:03:55]} Nc6 {[%emt 0:00:11]} 6. Ndb5 {[%emt 0:00:15]} Bb4 {[%emt 0:00:13]} 7. a3 {[%emt 0:05:51]} Bxc3+ {[%emt 0:00:14]} 8. Nxc3 {[%emt 0:00:13]} O-O {[%emt 0:02:24]} 9. Be2 {[%emt 0:07:03]} d5 {[%emt 0:02:35]} 10. exd5 {[%emt 0:02:06]} exd5 {[%emt 0:04:43]} 11. Bg5 {[%emt 0:03:33]} h6 {[%emt 0:03:06]} 12. Bxf6 {[%emt 0:03:03]} Qxf6 {[%emt 0:00:29]} 13. O-O {[%emt 0:05:12]} d4 {[%emt 0:04:17]} 14. Ne4 {[%emt 0:01:25]} Qe7 {[%emt 0:08:35]} 15. Bd3 {[%emt 0:04:00]} Bf5 {[%emt 0:08:27]} 16. Re1 {[%emt 0:02:27]} Bxe4 {[%emt 0:03:09]} 17. Rxe4 {[%emt 0:03:21]} Qf6 {[%emt 0:01:29]} 18. Qe2 {[%emt 0:03:41]} Rad8 {[%emt 0:04:20]} 19. Re1 {[%emt 0:03:58]} a6 {[%emt 0:02:52]} 20. Qh5 {[%emt 0:09:09]} Rd7 {[%emt 0:09:59]} 21. Qc5 {[%emt 0:04:20]} Qd6 {[%emt 0:02:02]} 22. Qf5 {[%emt 0:00:26]} g6 {[%emt 0:00:35]} 23. Qh3 {[%emt 0:06:09]} Kg7 {[%emt 0:01:34]} 24. Qh4 {[%emt 0:01:29]} Qf6 {[%emt 0:02:37]} 25. Qg4 {[%emt 0:03:59]} Rd5 {[%emt 0:02:38]} 26. f4 {[%emt 0:02:13]} Nd8 {[%emt 0:15:15]} 27. b3 {[%emt 0:08:07]} Nc6 {[%emt 0:02:45]} 28. h3 {[%emt 0:06:22]} Qd6 {[%emt 0:00:37]} 29. Re6 {[%emt 0:03:05]} Qc7 {[%emt 0:06:31]} 30. Rxg6+ {[%emt 0:02:08]} fxg6 {[%emt 0:00:46]} 31. Qxg6+ {[%emt 0:00:01]} Kh8 {[%emt 0:00:38]} 32. Qxh6+ {[%emt 0:00:05]} Kg8 {[%emt 0:00:34]} 33. Bc4 {[%emt 0:01:05]} Qh7 {[%emt 0:08:57]} 34. Bxd5+ {[%emt 0:00:12]} Kh8 {[%emt 0:00:01]} 35. Qxf8+ {[%emt 0:00:02]} 1-0

[Event "5th Thessaloniki SKG Open-B 2024"]
[Site "Thessaloniki"]
[Date "2024.08.13"]
[Round "9.7"]
[White "Polyzos, Vasileios"]
[Black "Yilmaz, Cagan Ata"]
[Result "0-1"]
[ECO "C63"]
[WhiteElo "1700"]
[BlackElo "1652"]
[Annotator "NA RC"]
[PlyCount "98"]
[EventDate "2024.08.05"]
[EventType "swiss"]
[EventCountry "GRE"]
[SourceTitle "playchess.com"]
[Source "ChessBase"]
[SourceQuality "1"]
[TimeControl "40/5400+30:1800+30"]

1. e4 {[%emt 0:00:34]} e5 {[%emt 0:00:06]} 2. Nf3 {[%emt 0:00:12]} Nc6 {[%emt 0:00:02]} 3. Bb5 {[%emt 0:00:08]} f5 {[%emt 0:00:06]} 4. d3 {[%emt 0:03:08]} fxe4 {[%emt 0:00:34]} 5. dxe4 {[%emt 0:00:21]} Nf6 {[%emt 0:00:05]} 6. O-O {[%emt 0:01:52]} Bc5 {[%emt 0:00:25]} 7. Nc3 {[%emt 0:02:30]} O-O {[%emt 0:06:55]} 8. Bg5 {[%emt 0:11:16]} d6 {[%emt 0:01:21]} 9. Nd5 {[%emt 0:08:39]} Kh8 {[%emt 0:01:03]} 10. a3 {[%emt 0:02:54]} Ne7 {[%emt 0:02:37]} 11. b4 {[%emt 0:07:57]} Nexd5 {[%emt 0:01:44]} 12. bxc5 {[%emt 0:07:17]} Nc3 {[%emt 0:00:19]} 13. Qd3 {[%emt 0:06:14]} Ncxe4 {[%emt 0:01:16]} 14. cxd6 {[%emt 0:02:05]} cxd6 {[%emt 0:00:32]} 15. Rad1 {[%emt 0:05:01]} Nxg5 {[%emt 0:03:45]} 16. Nxg5 {[%emt 0:00:10]} d5 {[%emt 0:00:19]} 17. Qg3 {[%emt 0:07:03]} Bg4 {[%emt 0:04:29]} 18. Rde1 {[%emt 0:05:47]} e4 {[%emt 0:02:05]} 19. h3 {[%emt 0:02:13]} Bc8 {[%emt 0:04:58]} 20. Qe5 {[%emt 0:04:06]} h6 {[%emt 0:12:02]} 21. Ne6 {[%emt 0:01:15]} Bxe6 {[%emt 0:00:15]} 22. Qxe6 {[%emt 0:00:35]} Qa5 {[%emt 0:00:43]} 23. Rb1 {[%emt 0:02:17]} Qxa3 {[%emt 0:03:49]} 24. Bd7 {[%emt 0:01:05]} b6 {[%emt 0:06:04]} 25. Bc6 {[%emt 0:01:12]} Rad8 {[%emt 0:00:16]} 26. Ra1 {[%emt 0:05:28]} Qd6 {[%emt 0:01:13]} 27. Qxd6 {[%emt 0:00:06]} Rxd6 {[%emt 0:00:04]} 28. Bb7 {[%emt 0:00:49]} Rb8 {[%emt 0:01:09]} 29. Ba6 {[%emt 0:00:51]} b5 {[%emt 0:46:44]} 30. Rfb1 {[%emt 0:00:34]} Kh7 {[%emt 0:00:00]} 31. Ra5 {[%emt 0:02:24]} Rdb6 {[%emt 0:00:00]} 32. Raxb5 {[%emt 0:02:40]} Rxb5 {[%emt 0:00:00]} 33. Rxb5 {[%emt 0:00:06]} Rxb5 {[%emt 0:00:00]} 34. Bxb5 {[%emt 0:00:04]} Kg6 {[%emt 0:00:00]} 35. c3 {[%emt 0:02:50]} Kf5 {[%emt 0:00:00]} 36. Kf1 {[%emt 0:00:30]} Ke5 {[%emt 0:00:00]} 37. Ke2 {[%emt 0:01:09]} d4 {[%emt 0:00:00]} 38. c4 {[%emt 0:00:11]} Ng8 {[%emt 0:00:00]} 39. f3 {[%emt 0:04:34]} Ne7 {[%emt 0:00:00]} 40. Ba6 {[%emt 0:00:00]} e3 {[%emt 0:00:00]} 41. g3 {[%emt 0:07:19]} Kd6 {[%emt 0:00:00]} 42. Kd3 {[%emt 0:00:21]} Kc5 {[%emt 0:00:00]} 43. f4 {[%emt 0:00:24]} Nc6 {[%emt 0:00:00]} 44. Bb5 {[%emt 0:00:31]} a6 {[%emt 0:00:00]} 45. Ba4 {[%emt 0:00:16]} Nb4+ {[%emt 0:00:00]} 46. Ke2 {[%emt 0:00:36]} Kxc4 {[%emt 0:00:00]} 47. g4 {[%emt 0:26:26]} Nd5 {[%emt 0:00:00]} 48. Kf3 {[%emt 0:00:00]} Kd3 {[%emt 0:00:00]} 49. Bb3 {[%emt 0:00:00]} e2 {[%emt 0:00:00]} 0-1